Cogmind - Beta 10.2 @@@ ROGUE MODE // 2021.01.13 @ 04:42:42 Player: WayneKnight Result: Self-destructed Performance ------------- Evolutions (3) 1500 Regions Visited (8) 1600 Robots Destroyed (50) 250 Value Destroyed (1390) 1390 Prototype IDs (31) 620 Alien Tech Used (0) 0 Bonus (881) 881 TOTAL SCORE: 6241 Bonus ------- Follower Combat Kills 581 Aligned with FarCom 300 Cogmind --------- Core Integrity 668/700 Matter 273/300 Energy 290/290 System Corruption 0% Temperature Cool (0) Movement Treading (172) Ox1 Location -7/Waste Parts ------- > --- POWER (1) -------- Improved Deuterium Engine > --- PROPULSION (4) --- Improved Treads Improved Treads Advanced Treads Advanced Treads > --- UTILITY (6) ------ Large Storage Unit High-capacity Storage Unit High-capacity Storage Unit Improved Sensor Array Advanced Signal Interpreter Hardened Medium Armor Plating > --- WEAPON (2) ------- Enhanced Autogun Enhanced Autogun > --- INVENTORY (26) --- Light Nuclear Core Micro Nuclear Core Improved Treads Improved Treads Improved Treads Airjet Aerolev Unit Aerolev Unit Gravmag System Improved Airjet High-capacity Storage Unit Lightpack 2.0 Advanced Targeting Computer Hardened Medium Armor Plating Hacking Suite System Shield System Backup Module Heavy Assault Rifle Heavy Assault Rifle Gauss Rifle Improved Light Cannon Advanced EMP Blaster Missile Launcher Longsword +1 Spear Peak State ------------ > --- POWER ------------ Improved Deuterium Engine > --- PROPULSION ------- Improved Treads Advanced Treads Advanced Treads Improved Airjet > --- UTILITY ---------- Large Storage Unit High-capacity Storage Unit High-capacity Storage Unit Improved Sensor Array Advanced Signal Interpreter Hardened Medium Armor Plating > --- WEAPON ----------- Enhanced Autogun Enhanced Autogun > --- INVENTORY -------- Light Nuclear Core Micro Nuclear Core Improved Treads Improved Treads Improved Treads Improved Treads Airjet Aerolev Unit Aerolev Unit Gravmag System High-capacity Storage Unit Lightpack 2.0 Advanced Targeting Computer Hardened Medium Armor Plating Hacking Suite System Shield System Backup Module Heavy Assault Rifle Heavy Assault Rifle Gauss Rifle Improved Light Cannon Advanced EMP Blaster Missile Launcher Longsword +1 Spear [Rating: 45] Favorites ----------- Power Improved Ion Engine Engine Improved Ion Engine Power Core Light Nuclear Core Propulsion Improved Treads Treads Improved Treads Leg Aluminum Leg Hover Unit Aerolev Unit Utility High-capacity Storage Unit Device Improved Sensor Array Storage High-capacity Storage Unit Processor Improved Signal Interpreter Protection Hardened Medium Armor Plating Weapon Heavy Assault Rifle Energy Cannon Advanced Beam Cannon Ballistic Gun Heavy Assault Rifle Launcher Advanced EMP Blaster Piercing Weapon Spear Build | -11 -10 -10 -10 -9 -8 -8 -7 -7 ------- Run | Scr Mat Min Exi Min Mat Sto Fac Was Slots Evolved 6 | . . . . . 4 . 2 . Power . | . . . . . . . . . Propulsion 2 | . . . . . 1 . 1 . Utility 4 | . . . . . 3 . 1 . Weapon . | . . . . . . . . . Parts Attached 49 | 3 6 2 . 2 22 8 6 . Power 5 | . . 1 . . 2 1 1 . Engine 4 | . . 1 . . 2 . 1 . Core 1 | . . . . . . 1 . . Reactor . | . . . . . . . . . Propulsion 14 | 2 2 . . . 7 . 3 . Treads 12 | 2 2 . . . 6 . 2 . Leg . | . . . . . . . . . Wheel . | . . . . . . . . . Hover 2 | . . . . . 1 . 1 . Flight . | . . . . . . . . . Utility 14 | 1 2 1 . . 6 2 2 . Device 2 | . . . . . 1 . 1 . Storage 6 | 1 2 1 . . 1 . 1 . Processor 2 | . . . . . 1 1 . . Hackware . | . . . . . . . . . Protection 4 | . . . . . 3 1 . . Artifact . | . . . . . . . . . Weapon 16 | . 2 . . 2 7 5 . . Energy Gun . | . . . . . . . . . Energy Cannon 2 | . . . . . 2 . . . Ballistic Gun 10 | . 2 . . 1 4 3 . . Ballistic Cannon . | . . . . . . . . . Launcher 2 | . . . . 1 . 1 . . Special Weapon . | . . . . . . . . . Impact Weapon . | . . . . . . . . . Slashing Weapon . | . . . . . . . . . Piercing Weapon 2 | . . . . . 1 1 . . Special Melee Weapon . | . . . . . . . . . Unidentified Prototypes 4 | . . . . . 2 1 1 . Parts Lost 2 | . . 1 . . . 1 . . Power 2 | . . 1 . . . 1 . . Propulsion . | . . . . . . . . . Utility . | . . . . . . . . . Weapon . | . . . . . . . . . Highest Loss Streak 1 | . . 1 . . . 1 . . Average Slot Usage (%) 99 | . 100 100 100 100 99 99 100 100 Engine 10 | . 14 14 14 14 8 7 6 7 Treads 27 | . 28 28 28 28 27 27 30 30 Storage 26 | . 28 28 28 28 26 27 23 23 Processor 5 | . . . . . 8 9 7 7 Protection 5 | . . . . . 8 9 7 7 Energy Cannon 3 | . . . . . 5 6 . . Ballistic Gun 17 | . 28 28 28 27 12 11 15 15 Naked Turns . | . . . . . . . . . Heaviest Build 105 | 15 41 57 57 57 102 104 105 105 Greatest Support 90 | 40 46 46 46 46 69 66 90 90 Greatest Overweight (x) 1 | . 1 1 1 1 1 1 1 1 Average Overweight (x) . | . . . 1 1 . 1 1 1 Largest Inventory Capacity 26 | 8 16 18 18 18 26 26 26 26 Average Capacity 22 | 6 14 16 18 18 25 26 26 26 Most Carried 26 | 6 15 15 18 18 26 26 26 26 Average Carried 21 | 6 12 14 15 17 24 25 25 26 Final Capacity 26 | 8 16 18 18 18 26 26 26 26 Final Carried 26 | 6 15 15 17 18 26 25 26 26 Class Distribution -------------------- 56% | Hauler-Mutant 35% | Mutant 7% | Commander-Mutant Dominant Class ---------------- Mutant | -10/Materials Mutant | -10/Mines Mutant | -10/Exiles Mutant | -9/Mines Hauler-Mutant | -8/Materials Commander-Mutant | -8/Storage Hauler-Mutant | -7/Factory Hauler-Mutant | -7/Waste Resources | -11 -10 -10 -10 -9 -8 -8 -7 -7 ----------- Run | Scr Mat Min Exi Min Mat Sto Fac Was Matter Collected 1289 | 212 79 86 . 24 604 173 111 . Remotely . | . . . . . . . . . Salvage Created 1736 | 60 79 37 . 166 988 212 194 . Parts 109 | 1 8 3 . 13 58 13 13 . Haulers Intercepted 5 | . 1 . . . 4 . . . Recyclers Shooed . | . . . . . . . . . Parts Field Recycled . | . . . . . . . . . Retrieved Matter . | . . . . . . . . . Parts Self-Destructed . | . . . . . . . . . Prevented . | . . . . . . . . . Kills | -11 -10 -10 -10 -9 -8 -8 -7 -7 ------- Run | Scr Mat Min Exi Min Mat Sto Fac Was Combat Hostiles Destroyed 37 | . . 4 . 6 17 5 5 . Guns 24 | . . 4 . 4 9 2 5 . Cannons 11 | . . . . . 8 3 . . AOE 2 | . . . . 2 . . . . Classes Destroyed 9 | 1 2 2 . 2 2 . . . Worker 2 | . . . . . 2 . . . Builder 1 | . 1 . . . . . . . Hauler 5 | . 1 . . . 4 . . . Recycler 1 | 1 . . . . . . . . Watcher 4 | . . . . . 4 . . . Swarmer 14 | . . 2 . 3 7 . 2 . Grunt 10 | . . . . 2 5 . 3 . Sentry 10 | . . . . 1 5 4 . . Demolisher 3 | . . 2 . . . 1 . . Best Kill Streak 5 | 1 2 2 . 3 5 2 3 . Combat Bots Only 4 | . . 2 . 3 4 2 3 . Max Kills in Single Turn 2 | 1 2 1 . 2 2 1 1 . Gunslinging . | . . . . . . . . . Exploded 2 | . . . . 2 . . . . Melee . | . . . . . . . . . Uniques/NPCs Destroyed . | . . . . . . . . . Combat | -11 -10 -10 -10 -9 -8 -8 -7 -7 -------- Run | Scr Mat Min Exi Min Mat Sto Fac Was Damage Taken 2445 | . . 363 . 26 943 861 252 . Core 230 | . . 96 . . 56 46 32 . Absorbed by Shields . | . . . . . . . . . Core Remaining (%) 80 | 100 . . . 61 . 81 . . Volleys Fired 124 | 2 2 8 . 6 73 20 13 . Largest 2 | 2 2 2 . 2 2 2 2 . Hottest 91 | 40 46 46 . 46 91 91 50 . Shots Fired 247 | 4 4 16 . 11 146 40 26 . Gun 187 | 4 4 16 . 10 96 31 26 . Cannon 59 | . . . . . 50 9 . . Launcher 1 | . . . . 1 . . . . Special . | . . . . . . . . . Kinetic 187 | 4 4 16 . 10 96 31 26 . Thermal 59 | . . . . . 50 9 . . Explosive 1 | . . . . 1 . . . . Electromagnetic . | . . . . . . . . . Robot Hit Streak 14 | 4 7 9 . 7 10 12 14 . Robot Miss Streak 3 | . . 1 . 1 3 2 1 . Penetration Max . | . . . . . . . . . Secondary Targets . | . . . . . . . . . Shots Hit Robots 170 | 4 3 13 . 8 93 31 18 . Core Hits 75 | 2 2 6 . 7 39 10 9 . Critical Hits 10 | . . . . . 6 4 . . Critical Kills 5 | . . . . . 3 2 . . Critical Parts Destroyed 4 | . . . . . 3 1 . . Melee Attacks 2 | . . . . . 1 1 . . Impact . | . . . . . . . . . Slashing . | . . . . . . . . . Piercing 2 | . . . . . 1 1 . . Sneak Attacks . | . . . . . . . . . Combat Hostiles . | . . . . . . . . . Follow-up Attacks . | . . . . . . . . . Damage Inflicted 3185 | 53 67 194 . 300 1640 613 318 . Guns 1962 | 53 67 194 . 138 773 419 318 . Cannons 1009 | . . . . . 827 182 . . Explosions 162 | . . . . 162 . . . . Melee . | . . . . . . . . . Ramming 52 | . . . . . 40 12 . . Kinetic 1962 | 53 67 194 . 138 773 419 318 . Thermal 1009 | . . . . . 827 182 . . Explosive 162 | . . . . 162 . . . . Electromagnetic . | . . . . . . . . . Impact . | . . . . . . . . . Slashing . | . . . . . . . . . Piercing . | . . . . . . . . . Highest Corruption 3 | . 1 1 1 1 3 . . . Average Corruption 1 | . 1 1 1 1 2 . . . Corruption Purged 3 | . . . . . 3 . . . Effects 47 | . 1 5 2 3 36 . . . Message Errors 17 | . 1 2 2 2 10 . . . Matter Fused 8 | . . . . . 8 . . . Heat Flow Errors 2 | . . . . . 2 . . . Energy Discharges 9 | . . 1 . 1 7 . . . Data Loss (minor) 10 | . . 2 . . 8 . . . Targeting Errors 1 | . . . . . 1 . . . Overload Shots . | . . . . . . . . . Overflow Damage 11 | . . . . . 11 . . . Projectiles 11 | . . . . . 11 . . . Explosions . | . . . . . . . . . Melee . | . . . . . . . . . Knockbacks 1 | . . . . . 1 . . . Impact 1 | . . . . . 1 . . . Kinetic . | . . . . . . . . . Secondary . | . . . . . . . . . Self-Inflicted Damage . | . . . . . . . . . Shots . | . . . . . . . . . Rammed 3 | . . . . . 2 1 . . Targets Rammed 3 | . . . . . 2 1 . . Kicked . | . . . . . . . . . Crushed . | . . . . . . . . . Highest Temperature 238 | . . . . 1 238 186 80 . Average Temperature 57 | . . . . 1 57 72 33 . Received Heat Transfer 572 | . . 15 . 6 333 128 90 . Siege Activations . | . . . . . . . . . Robots Corrupted . | . . . . . . . . . Combat Hostiles . | . . . . . . . . . Parts Fried . | . . . . . . . . . Impact Corruptions . | . . . . . . . . . Robots Melted . | . . . . . . . . . Combat Hostiles . | . . . . . . . . . Parts Melted 3 | . . . . . 2 1 . . Heat Transferred 1739 | . . . . . 1443 296 . . Parts Sabotaged . | . . . . . . . . . Parts Stolen . | . . . . . . . . . Parts Stripped . | . . . . . . . . . Power Chain Reactions . | . . . . . . . . . Missiles Intercepted . | . . . . . . . . . Alert | -11 -10 -10 -10 -9 -8 -8 -7 -7 ------- Run | Scr Mat Min Exi Min Mat Sto Fac Was Peak Influence 389 | 5 15 90 . 90 240 389 121 . Initial 121 | . 3 4 . . . 101 121 . Average 95 | 4 6 50 . 23 98 235 94 . Maximum Alert Level 1 | . . . . . 1 1 . . Low Security (%) 86 | 100 100 100 . 100 91 27 100 100 Level 1 13 | . . . . . 8 72 . . Level 2 . | . . . . . . . . . Level 3 . | . . . . . . . . . Level 4 . | . . . . . . . . . Level 5 . | . . . . . . . . . High Security . | . . . . . . . . . Max Security . | . . . . . . . . . Squads Dispatched 2 | . . . . 1 . 1 . . Investigation 1 | . . . . 1 . . . . Extermination . | . . . . . . . . . Reinforcement . | . . . . . . . . . Assault . | . . . . . . . . . Garrison 1 | . . . . . . 1 . . Intercept . | . . . . . . . . . Construction Impeded . | . . . . . . . . . Haulers Reinforced . | . . . . . . . . . Stealth | -11 -10 -10 -10 -9 -8 -8 -7 -7 --------- Run | Scr Mat Min Exi Min Mat Sto Fac Was Distress Signals 6 | . . . . . 2 4 . . Communications Jammed . | . . . . . . . . . Distress Signals . | . . . . . . . . . Times Spotted 72 | . . 6 . 6 32 23 5 . Peak Tracking Total 4 | . . 2 . 3 4 4 3 . Tactical Retreats 5 | . . . . . 3 2 . . Traps | -11 -10 -10 -10 -9 -8 -8 -7 -7 ------- Run | Scr Mat Min Exi Min Mat Sto Fac Was Traps Triggered 6 | . 1 . . . 2 1 2 . Indirectly . | . . . . . . . . . Trap Hack Attempts . | . . . . . . . . . Triggered . | . . . . . . . . . Disarmed . | . . . . . . . . . Reprogrammed . | . . . . . . . . . Reused . | . . . . . . . . . Traps Extracted . | . . . . . . . . . Installed . | . . . . . . . . . Triggered . | . . . . . . . . . Machines | -11 -10 -10 -10 -9 -8 -8 -7 -7 ---------- Run | Scr Mat Min Exi Min Mat Sto Fac Was Machines Disabled 4 | . . 1 . . 2 1 . . Max in Single Turn 1 | . . . . . 1 1 . . Garrison Access 2 | . . . . . . . 2 . Machines Sabotaged . | . . . . . . . . . Garrisons Compromised . | . . . . . . . . . Overloaded Fab Kills . | . . . . . . . . . Fab Network Shutdowns . | . . . . . . . . . Hacking | -11 -10 -10 -10 -9 -8 -8 -7 -7 --------- Run | Scr Mat Min Exi Min Mat Sto Fac Was Machines Accessed 29 | . 1 . 2 1 10 10 5 . Terminals 19 | . 1 . . . 6 9 3 . Fabricators . | . . . . . . . . . Repair Stations 2 | . . . . . 2 . . . Recycling Units 2 | . . . . . 1 1 . . Scanalyzers 1 | . . . . . 1 . . . Garrison Access 2 | . . . . . . . 2 . Total Hacks 76 | . 8 . 2 1 30 27 8 . Successful 43 | . 5 . 2 1 16 15 4 . Failed 31 | . 2 . . . 13 12 4 . Catastrophic 2 | . . . . . . 2 . . Database Lockouts 2 | . 1 . . . 1 . . . Manual 48 | . 5 . 1 . 19 17 6 . Terminals 63 | . 8 . . . 23 26 6 . Fabricators . | . . . . . . . . . Repair Stations 3 | . . . . . 3 . . . Recycling Units 3 | . . . . . 2 1 . . Scanalyzers 2 | . . . . . 2 . . . Garrison Access 2 | . . . . . . . 2 . Terminal Hacks 20 | . 3 . 2 1 5 9 . . Record 1 | . . . 1 . . . . . Part Schematic 2 | . . . . . . 2 . . Robot Analysis 3 | . 2 . . . 1 . . . Prototype ID Bank 2 | . . . . . . 2 . . Open Door 3 | . . . . 1 . 2 . . Branch Access Points 1 | . . . . . 1 . . . Alert Level 2 | . . . . . 2 . . . Unreport Threat 1 | . . . . . . 1 . . Locate Traps 2 | . 1 . . . . 1 . . Zone Layout 2 | . . . . . 1 1 . . EX-Prototype ID Bank 1 | . . . 1 . . . . . Fabricator Hacks . | . . . . . . . . . Repair Station Hacks 2 | . . . . . 2 . . . Scan Component 1 | . . . . . 1 . . . Repair 1 | . . . . . 1 . . . Recycling Unit Hacks 1 | . . . . . . 1 . . Report Inventory 1 | . . . . . . 1 . . Scanalyzer 2 | . . . . . 2 . . . Insert Component 1 | . . . . . 1 . . . Analyze 1 | . . . . . 1 . . . Garrison Access Hacks 2 | . . . . . . . 2 . Seal Access 2 | . . . . . . . 2 . Unauthorized Hacks 16 | . 2 . . . 7 5 2 . Terminals 16 | . 2 . . . 7 5 2 . Track 3 | . 1 . . . 2 . . . Botnet 13 | . 1 . . . 5 5 2 . Fabricators . | . . . . . . . . . Repair Stations . | . . . . . . . . . Recycling Units . | . . . . . . . . . Scanalyzers . | . . . . . . . . . Garrison Access . | . . . . . . . . . Data Cores Recovered . | . . . . . . . . . Used . | . . . . . . . . . Hacking Detections 21 | . 1 . . . 10 7 3 . Full Trace Events . | . . . . . . . . . Feedback Events . | . . . . . . . . . Feedback Blocked . | . . . . . . . . . Robot Schematics Acquired . | . . . . . . . . . Robots Built . | . . . . . . . . . Matter . | . . . . . . . . . Time . | . . . . . . . . . Total Robot Build Rating . | . . . . . . . . . Part Schematics Acquired 3 | . . . . . 1 2 . . Parts Built . | . . . . . . . . . Matter . | . . . . . . . . . Time . | . . . . . . . . . Total Part Build Rating . | . . . . . . . . . Parts Repaired 1 | . . . . . 1 . . . Time 32 | . . . . . 32 . . . Parts Recycled . | . . . . . . . . . Recycled Matter . | . . . . . . . . . Retrieved Matter . | . . . . . . . . . Retrieved Components . | . . . . . . . . . Parts Scanalyzed 1 | . . . . . 1 . . . Part Schematics Acquired 1 | . . . . . 1 . . . Parts Damaged . | . . . . . . . . . Bothacking | -11 -10 -10 -10 -9 -8 -8 -7 -7 ------------ Run | Scr Mat Min Exi Min Mat Sto Fac Was Used RIF Installer . | . . . . . . . . . Robots Hacked . | . . . . . . . . . Non-combat . | . . . . . . . . . Combat . | . . . . . . . . . Robot Hacks Applied . | . . . . . . . . . Relay Couplers Released . | . . . . . . . . . Robots Rewired . | . . . . . . . . . Allies Hacked . | . . . . . . . . . Hacks Repelled . | . . . . . . . . . Allies | -11 -10 -10 -10 -9 -8 -8 -7 -7 -------- Run | Scr Mat Min Exi Min Mat Sto Fac Was Total Allies 16 | . . 5 . . . 10 . 1 Largest Group 10 | . . 3 3 3 . 10 . 1 Highest-Rated Group 173 | . . 43 40 40 . 173 . 31 Highest-Rated Ally 31 | . . 31 16 16 . 29 . 31 Total Orders . | . . . . . . . . . Ally Attacks 151 | . . 23 . 6 . 122 . . Total Damage 2058 | . . 248 . 60 . 1750 . . Kills 26 | . . 5 . 1 . 20 . . Allies Corrupted 1 | . . . . . . 1 . . Allies Melted . | . . . . . . . . . Intel | -11 -10 -10 -10 -9 -8 -8 -7 -7 ------- Run | Scr Mat Min Exi Min Mat Sto Fac Was Robot Analysis Total 3 | . 2 . . . 1 . . . Derelict Logs Recovered 2 | . . . . 2 . . . . Drone Launches . | . . . . . . . . . Drone Recoveries . | . . . . . . . . . Exploration | -11 -10 -10 -10 -9 -8 -8 -7 -7 ------------- Run | Scr Mat Min Exi Min Mat Sto Fac Was Turns Passed 12703 | 26 742 1407 818 1300 6074 1504 826 6 Spaces Moved 4759 | 13 375 567 454 665 1629 702 351 3 Core . | . . . . . . . . . Treads 4749 | 3 375 567 454 665 1629 702 351 3 Legs 10 | 10 . . . . . . . . Wheels . | . . . . . . . . . Hover . | . . . . . . . . . Flight . | . . . . . . . . . Fastest Speed 120 | 120 160 160 180 180 160 165 168 172 Average Speed 172 | 129 164 171 180 180 174 165 170 172 Slowest Speed 180 | 160 180 180 180 180 180 165 172 172 Overloaded Moves . | . . . . . . . . . Propulsion Burnouts . | . . . . . . . . . Robots Hopped . | . . . . . . . . . Cave-ins Triggered . | . . . . . . . . . Exploration Rate (%) 57 | 3 41 98 89 98 84 78 11 11 Regions Visited 8 Branch Regions 4 Pre-discovered Areas 1 | . . . 1 . . . . . Known Exits Taken 2 | . . . . . 1 1 . . Unknown Exits Taken 5 | 1 1 1 1 1 . . . . Scrap Searched 3 | . . 1 . 2 . . . . Spaces Dug 1 | . . . . . 1 . . . Terrain Destroyed 11 | . . . . 10 1 . . . Melee 1 | . . . . . 1 . . . Projectile . | . . . . . . . . . AOE 10 | . . . . 10 . . . . Terrain Rammed . | . . . . . . . . . Walls Destroyed . | . . . . . . . . . Machines Disabled . | . . . . . . . . . Actions | -11 -10 -10 -10 -9 -8 -8 -7 -7 --------- Run | Scr Mat Min Exi Min Mat Sto Fac Was Total 9012 | 17 501 984 456 757 4712 1017 565 3 Wait 4000 | . 102 408 . 80 2947 273 190 . Move 4752 | 12 374 566 453 664 1628 701 351 3 Hop . | . . . . . . . . . Pick Up 41 | . 10 . 2 3 19 4 3 . Fast Attach 9 | 1 . . . . 6 1 1 . Attach 6 | . . 1 . . 2 1 2 . Detach . | . . . . . . . . . Swap 34 | 2 6 1 . 2 14 6 3 . Drop 39 | . 7 . 1 2 20 7 2 . Fire 124 | 2 2 8 . 6 73 20 13 . Melee 2 | . . . . . 1 1 . . Ram . | . . . . . . . . . Kick . | . . . . . . . . . Crush 3 | . . . . . 2 1 . . Escape Stasis . | . . . . . . . . . Rewire 2 | . . . . . . 2 . . Trap . | . . . . . . . . . Miscellaneous . | . . . . . . . . . Route ------- -11/Scrapyard -10/Materials (discovered 2 exits: [*Mat] / [*Min]) -10/Mines (discovered 3 exits: [*Mat x2] / *Exi) -10/Exiles (discovered 2 exits: *Min x2) -9/Mines (discovered 2 exits: *Mat x2) -8/Materials (discovered 3 exits: *Fac x2 / *Sto) -8/Storage -7/Factory -7/Waste History --------- Turn | Location | Event 7 | -11/Scrapyard | Discovered new exit (range 3) 27 | -11/Scrapyard | Entered Materials 130 | -10/Materials | Discovered new exit (range 11) 312 | -10/Materials | Build established: Mutant 360 | -10/Materials | Discovered new exit (range 6) 570 | -10/Materials | Central database locked down 769 | -10/Materials | Entered Mines 846 | -10/Mines | Assembled infested the area 1277 | -10/Mines | Deemed a non-threat by the Exiles lab entrance 1277 | -10/Mines | Discovered new exit (range 5) 1368 | -10/Mines | Assisted by bots powering up and referring to "LRC-V3" 1712 | -10/Mines | Discovered new exit (range 15) 1989 | -10/Mines | Discovered new exit (range 9) 2176 | -10/Mines | Entered Exiles 2176 | -10/Exiles | Accompanied by 3 allies 2209 | -10/Exiles | Discovered new exit (range 15) 2232 | -10/Exiles | Met 8R-AWN 2259 | -10/Exiles | Met EX-HEX 2353 | -10/Exiles | Met EX-DEC 2390 | -10/Exiles | Visited The Gauntlet 2592 | -10/Exiles | Learned location of Zion (-6) 2733 | -10/Exiles | Met EX-BIN 2758 | -10/Exiles | Aligned with FarCom system 2760 | -10/Exiles | Given EX-Vault access code 2801 | -10/Exiles | Opened EX-Vault 2815 | -10/Exiles | Found Longsword +1 2818 | -10/Exiles | Found Lightpack 2.0 2857 | -10/Exiles | Warned to stay clear of 0b10 Research branches 2970 | -10/Exiles | Discovered new exit (range 14) 2994 | -10/Exiles | Stole two prototypes: Lightpack 2.0, Longsword +1 2994 | -10/Exiles | Entered Mines 2994 | -9/Mines | Accompanied by 3 allies 3020 | -9/Mines | Met a Derelict bent on vengeance 3292 | -9/Mines | Learned 2 Materials zone layouts 3297 | -9/Mines | Learned 2 Materials zone layouts 3428 | -9/Mines | Received a Rocket Launcher from a helpful Derelict 3851 | -9/Mines | Discovered new exit (range 3) 3860 | -9/Mines | Joined a pair of Derelicts in attacking an 0b10 outpost 3948 | -9/Mines | Met a Derelict shopkeep closing up shop 4006 | -9/Mines | Discovered new exit (range 12) 4294 | -9/Mines | Entered Materials 4294 | -8/Materials | Evolved 4 slots: Propulsion x1, Utility x3 4866 | -8/Materials | Build established: Hauler-Mutant 5443 | -8/Materials | Discovered new exit (range 9) 5716 | -8/Materials | Repaired Imp. Ion Engine 6395 | -8/Materials | Discovered new exit (range 14) 6433 | -8/Materials | Identified exit to Storage 7742 | -8/Materials | Discovered new exit (range 10) 7900 | -8/Materials | Identified exit to Factory 9626 | -8/Materials | Central database locked down 10368 | -8/Materials | Entered Storage 10502 | -8/Storage | Assisted by bots powering up and referring to "LRC-V3" 10815 | -8/Storage | Build established: Commander-Mutant 11353 | -8/Storage | Discovered exit to Factory (range 5) 11586 | -8/Storage | Assembled infested ambush trap array 11605 | -8/Storage | Garrison activated, responded to threat 11751 | -8/Storage | Build established: Hauler-Mutant 11872 | -8/Storage | Entered Factory 11872 | -7/Factory | Evolved 2 slots: Propulsion x1, Utility x1 11874 | -7/Factory | FarCom data flow suspended 12480 | -7/Factory | Discovered new exit (range 4) 12485 | -7/Factory | Identified exit to Factory 12698 | -7/Factory | Sucked down chute 12698 | -7/Factory | Entered Waste 12699 | -7/Waste | Met a frightened Derelict 12704 | -7/Waste | Self-destructed Last Messages --------------- 12507_ Connecting with Garrison Access... >>Seal Access door sealed. 12519_ Connecting with Terminal... >>Trojan(Botnet) Trojan loaded successfully. Testing... Terminal linked with 1 system. Awaiting botnet instructions. 12538_ K-01 Serf cleans the Fabricator. 12560_ K-01 Serf cleans the Fusion Modulator. 12675_ K-01 Serf cleans the Subcomponent Replicator. 12698_ Triggered Chute Trap. 12698_ A hatch slides open and sucks a vortex of air into the floor. LOCATION=UNKNOWN GOAL=ESCAPE 12699_ 09-4MH(g): "Oh no, you too?! We need to get out of this place, preferably unseen. I've heard terrible stories about what compactors can do if you allow them to get too close... Maybe together we can make it." 12703_ ALERT: Foreign system detected. Charging EMP. Map ----- +----------------------------------------------------+ | ?????????????????????????????????????????????? | | ?????????????????????????????????????????????? | | ?????????????????????????????????????????????? | | ?????????????????????????????????????????????? | | ?????????????????????????????????????????????? | | ?????????????????????????????????????????????? | | ?????????????????????????????????????????????? | | ?????????????????????????????????????????????? | | ?????????????????????????????????????????????? | | ?????????????????????????????????????????????? | | ?????????????????????????????????????????????? | | ?????????????????????????????????????????????? | | ?????????????????????????????????????????????? | | ?????????????????????????????????????????????? | | ?????????????????????????????????????????????? | | ?????????????????????????????????????????????? | | ?????????????????????????????????????????????? | | ?????????????????????????????????????????????? | | ?????????????????????????????????????????????? | | ?????????????????????????????????????????????? | | ?????????????############????????????????????? | | ?????????????# #????????????????????? | | ?????????????# = #???????#????????????? | | ?????????????# #### ##???????????? | | ?????????????#] ????????? | | ?????????????# @ ????????? | | ?????????????# ????????? | | ?????????????# g ????????? | | ?????????????# #### ####?????????? | | ?????????????# #????? #????????????? | | ?????????????# #????????????????????? | | ?????????????############????????????????????? | | ?????????????????????????????????????????????? | | ?????????????????????????????????????????????? | | ?????????????????????????????????????????????? | | ?????????????????????????????????????????????? | | ?????????????????????????????????????????????? | | ?????????????????????????????????????????????? | | ?????????????????????????????????????????????? | | ?????????????????????????????????????????????? | | ?????????????????????????????????????????????? | | ?????????????????????????????????????????????? | | ?????????????????????????????????????????????? | | ?????????????????????????????????????????????? | | ?????????????????????????????????????????????? | | ?????????????????????????????????????????????? | | ?????????????????????????????????????????????? | | ?????????????????????????????????????????????? | | ?????????????????????????????????????????????? | | ?????????????????????????????????????????????? | +----------------------------------------------------+ Best States ------------- Heat Dissipation 34 Energy Generation 16 Energy Capacity 290 Matter Stores 300 Matter Capacity 300 Sight Range 16 Robot Scan Range 13 Terrain Scan Density 10 Armor Coverage 225 Evasion (%) 40 Recoil Reduction 4 Item Schematics ----------------- System Backup Module | -8/Materials | Scanalyzed Adv. Signal Interpreter | -8/Storage | Hacked Adv. Sensor Array | -8/Storage | Hacked Robot Schematics ------------------ None Fabricated ------------ Nothing Alien Tech Used ----------------- None Achievements -------------- None Challenges ------------ None Game ------ Seed SwarmAntigravRegulator Manual? 0 Play Time 00:44:42 Cumulative 192.3 hours Start 2021.01.13 @ 03:57:53 End 2021.01.13 @ 04:42:42 Sessions 1 Manual Loads 0 Difficulty Rogue Special Mode None Game No. 139 Rogue 139 Adventurer 0 Explorer 0 Win Type - Total 4 Types 4/0/0/0/0/0/0/0/0 Lore% 48 Gallery% 61 Achievement% 45 Wizard Run 0 Options --------- ASCII 1 Keyboard 1 Movement Arrows Keybinds 0 Fullscreen 1 Font 24/Proggy Map View 76x50 Tactical HUD 1 Map Filters NONE Filters NONE Steam 1 RUN: 9ea7eaee-3489-45b9-a777-c6a685d9971e